[Event "36th Belgrade Trophy 2023"]
[Site "Belgrade"]
[Date "2023.12.02"]
[Round "8.3"]
[White "Enkhnar, Enkhbaatar"]
[Black "Pap, Misa"]
[Result "1-0"]
[ECO "A90"]
[WhiteElo "2327"]
[BlackElo "2426"]
[Annotator "ChessBase"]
[PlyCount "69"]
[EventDate "2023.10.23"]
[EventType "swiss"]
[EventCountry "SRB"]
[SourceTitle "playchess.com"]
[Source "ChessBase"]
[SourceQuality "1"]
[TimeControl "40/5400+30:900+30"]

1. d4 {[%emt 0:00:16]} f5 {[%emt 0:00:50]} 2. c4 {[%emt 0:00:11]} Nf6 {[%emt 0:00:52]} 3. Nf3 {[%emt 0:00:06]} e6 {[%emt 0:06:38]} 4. g3 {[%emt 0:00:18]} Bb4+ {[%emt 0:01:11]} 5. Bd2 {[%emt 0:00:34]} Qe7 {[%emt 0:03:58]} 6. Bg2 {[%emt 0:01:30]} Ne4 {[%emt 0:14:36]} 7. O-O {[%emt 0:02:39]} b6 {[%emt 0:08:56]} 8. a3 {[%emt 0:04:03]} Bd6 {[%emt 0:01:48]} 9. Nc3 {[%emt 0:03:53]} Bb7 {[%emt 0:02:09]} 10. d5 {[%emt 0:01:02]} O-O {[%emt 0:04:00]} 11. Nxe4 {[%emt 0:03:17]} fxe4 {[%emt 0:00:05]} 12. Bg5 {[%emt 0:08:26]} exf3 {[%emt 0:14:08]} 13. Bxe7 {[%emt 0:00:07]} fxg2 {[%emt 0:00:02]} 14. Bxf8 {[%emt 0:00:20]} gxf1=Q+ {[%emt 0:00:08]} 15. Kxf1 {[%emt 1:11:18]} Bxf8 {[%emt 0:04:08]} 16. dxe6 {[%emt 0:00:00]} dxe6 {[%emt 0:00:26]} 17. Qd8 {[%emt 0:00:00]} Na6 {[%emt 0:02:36]} 18. Qd7 {[%emt 0:00:00]} Nc5 {[%emt 0:00:24]} 19. Qxc7 {[%emt 0:00:00]} Rc8 {[%emt 0:00:01]} 20. Qf4 {[%emt 0:00:00]} Ne4 {[%emt 0:15:37]} 21. Qe5 {[%emt 0:00:00]} Kf7 {[%emt 0:03:53]} 22. Rd1 {[%emt 0:00:00]} Nf6 {[%emt 0:00:18]} 23. g4 {[%emt 0:00:00]} h6 {[%emt 0:01:42]} 24. f3 {[%emt 0:00:00]} Bc6 {[%emt 0:06:40]} 25. b4 {[%emt 0:00:00]} Ba4 {[%emt 0:01:13]} 26. Rd4 {[%emt 0:00:00]} Bb3 {[%emt 0:01:29]} 27. Qb5 {[%emt 0:00:00]} Be7 {[%emt 0:01:42]} 28. h4 {[%emt 0:00:00]} g5 {[%emt 0:01:48]} 29. hxg5 {[%emt 0:00:00]} hxg5 {[%emt 0:00:01]} 30. Qxg5 {[%emt 0:00:00]} Bxc4 {[%emt 0:00:04]} 31. Qf4 {[%emt 0:00:00]} e5 {[%emt 0:03:10]} 32. Qxe5 {[%emt 0:00:00]} Bb3 {[%emt 0:01:17]} 33. g5 {[%emt 0:00:00]} Rc1+ {[%emt 0:00:17]} 34. Kg2 {[%emt 0:00:00]} Be6 {[%emt 0:00:52]} 35. g6+ {[%emt 0:00:00]} 1-0

[Event "36th Belgrade Trophy 2023"]
[Site "Belgrade"]
[Date "2023.12.02"]
[Round "8.4"]
[White "Martic, Ivan"]
[Black "Kilic, Eray"]
[Result "1-0"]
[ECO "C43"]
[WhiteElo "2292"]
[BlackElo "2446"]
[Annotator "ChessBase"]
[PlyCount "67"]
[EventDate "2023.10.23"]
[EventType "swiss"]
[EventCountry "SRB"]
[SourceTitle "playchess.com"]
[Source "ChessBase"]
[SourceQuality "1"]
[TimeControl "40/5400+30:900+30"]

1. e4 {[%emt 0:00:04]} e5 {[%emt 0:00:04]} 2. Nf3 {[%emt 0:00:07]} Nf6 {[%emt 0:00:04]} 3. d4 {[%emt 0:01:32]} Nxe4 {[%emt 0:00:03]} 4. Bd3 {[%emt 0:00:14]} Nc6 {[%emt 0:00:03]} 5. Nxe5 {[%emt 0:00:53]} Nxe5 {[%emt 0:00:23]} 6. dxe5 {[%emt 0:00:12]} Nc5 {[%emt 0:00:21]} 7. Bc4 {[%emt 0:01:02]} d6 {[%emt 0:00:04]} 8. Qf3 {[%emt 0:02:03]} Ne6 {[%emt 0:00:12]} 9. exd6 {[%emt 0:01:06]} Bxd6 {[%emt 0:03:36]} 10. Nc3 {[%emt 0:00:56]} O-O {[%emt 0:00:39]} 11. Be3 {[%emt 0:00:21]} Be5 {[%emt 0:06:53]} 12. Bd3 {[%emt 0:00:29]} Qh4 {[%emt 0:11:26]} 13. O-O-O {[%emt 0:00:59]} Nf4 {[%emt 0:03:19]} 14. Be4 {[%emt 0:30:23]} Ng6 {[%emt 0:00:13]} 15. g3 {[%emt 0:06:30]} Qh3 {[%emt 0:00:04]} 16. Bxb7 {[%emt 0:06:02]} Bxb7 {[%emt 0:01:50]} 17. Qxb7 {[%emt 0:01:31]} Bxc3 {[%emt 0:00:15]} 18. bxc3 {[%emt 0:00:07]} Qe6 {[%emt 0:00:33]} 19. Qd5 {[%emt 0:03:04]} Qa6 {[%emt 0:04:39]} 20. Bc5 {[%emt 0:00:19]} Rfb8 {[%emt 0:00:21]} 21. Rd4 {[%emt 0:01:05]} c6 {[%emt 0:08:26]} 22. Qc4 {[%emt 0:00:17]} Qb7 {[%emt 0:00:09]} 23. Re1 {[%emt 0:01:13]} Re8 {[%emt 0:05:42]} 24. Rde4 {[%emt 0:03:08]} Rxe4 {[%emt 0:00:41]} 25. Rxe4 {[%emt 0:02:55]} a5 {[%emt 0:00:05]} 26. h4 {[%emt 0:06:34]} h5 {[%emt 0:02:36]} 27. g4 {[%emt 0:04:12]} hxg4 {[%emt 0:08:57]} 28. h5 {[%emt 0:00:58]} Nh8 {[%emt 0:00:04]} 29. Rxg4 {[%emt 0:03:45]} Qd7 {[%emt 0:02:08]} 30. Qd4 {[%emt 0:05:54]} Qxd4 {[%emt 0:01:18]} 31. Bxd4 {[%emt 0:00:07]} g6 {[%emt 0:00:03]} 32. Bxh8 {[%emt 0:04:09]} Kxh8 {[%emt 0:00:05]} 33. hxg6 {[%emt 0:00:08]} fxg6 {[%emt 0:00:03]} 34. Rxg6 {[%emt 0:00:36]} 1-0

[Event "36th Belgrade Trophy 2023"]
[Site "Belgrade"]
[Date "2023.12.02"]
[Round "8.5"]
[White "Antic, Dejan"]
[Black "Besedes, Danilo"]
[Result "0-1"]
[ECO "A13"]
[WhiteElo "2362"]
[BlackElo "2277"]
[Annotator "ChessBase"]
[PlyCount "135"]
[EventDate "2023.10.23"]
[EventType "swiss"]
[EventCountry "SRB"]
[SourceTitle "playchess.com"]
[Source "ChessBase"]
[SourceQuality "1"]
[TimeControl "40/5400+30:900+30"]

1. Nf3 {[%emt 1:31:00]} d5 {[%emt 1:31:00]} 2. e3 {[%emt 0:00:30]} Nf6 {[%emt 0:00:30]} 3. c4 {[%emt 0:00:30]} e6 {[%emt 0:00:30]} 4. b3 {[%emt 0:00:30]} c5 {[%emt 0:00:30]} 5. Bb2 {[%emt 0:00:00]} Nc6 {[%emt 0:00:30]} 6. cxd5 {[%emt 0:01:00]} Nxd5 {[%emt 0:00:30]} 7. Nc3 {[%emt 0:00:30]} Nc7 {[%emt 0:00:30]} 8. Rc1 {[%emt 0:00:30]} b6 {[%emt 0:00:30]} 9. Nb5 {[%emt 0:00:30]} Nd5 {[%emt 0:00:30]} 10. d4 {[%emt 0:00:30]} a6 {[%emt 0:00:30]} 11. e4 {[%emt 0:00:30]} axb5 {[%emt 0:00:30]} 12. exd5 {[%emt 0:00:30]} Qxd5 {[%emt 0:00:30]} 13. Bxb5 {[%emt 0:00:30]} Bd7 {[%emt 0:00:30]} 14. O-O {[%emt 0:00:30]} Ne5 {[%emt 0:00:30]} 15. Be2 {[%emt 0:00:30]} Ng6 {[%emt 0:00:30]} 16. Bc4 {[%emt 0:00:30]} Qf5 {[%emt 0:00:30]} 17. d5 Be7 18. dxe6 {[%emt 0:00:00]} fxe6 {[%emt 0:01:00]} 19. Re1 {[%emt 0:01:30]} Rxa2 {[%emt 0:00:30]} 20. Bd3 Qh5 21. Bxg7 {[%emt 0:01:00]} Rg8 {[%emt 0:01:00]} 22. Bxg6+ {[%emt 0:00:00]} hxg6 {[%emt 0:00:30]} 23. Be5 {[%emt 0:01:00]} Bc6 {[%emt 0:00:30]} 24. Bg3 {[%emt 0:00:00]} Bd5 {[%emt 0:00:30]} 25. Re5 {[%emt 0:01:00]} Bxf3 {[%emt 0:00:30]} 26. gxf3 {[%emt 0:00:00]} Qh3 {[%emt 0:00:30]} 27. Ra1 {[%emt 0:00:00]} Rxa1 {[%emt 0:00:00]} 28. Re1 {[%emt 0:00:00]} Ra2 29. Re5 Ra1 {[%emt 0:00:00]} 30. Qxa1 {[%emt 0:00:00]} Kf7 {[%emt 0:02:00]} 31. Qa7 {[%emt 0:03:00]} Rd8 {[%emt 0:00:30]} 32. Re1 {[%emt 0:00:30]} b5 {[%emt 0:00:30]} 33. Qb7 {[%emt 0:00:30]} b4 {[%emt 0:00:30]} 34. Qe4 {[%emt 0:00:00]} Qf5 {[%emt 0:00:30]} 35. Kg2 {[%emt 0:01:00]} Qxe4 {[%emt 0:00:30]} 36. fxe4 {[%emt 0:00:30]} Rd3 {[%emt 0:00:30]} 37. Rb1 {[%emt 0:00:30]} Bf6 {[%emt 0:00:30]} 38. e5 {[%emt 0:00:30]} Be7 {[%emt 0:00:00]} 39. f4 {[%emt 0:00:00]} Ke8 {[%emt 0:01:00]} 40. Kf2 {[%emt 0:01:00]} Kd7 {[%emt 0:00:30]} 41. Ke2 {[%emt 0:15:30]} Rc3 {[%emt 0:15:30]} 42. Be1 {[%emt 0:00:30]} Rc2+ {[%emt 0:00:30]} 43. Bd2 {[%emt 0:00:30]} Ra2 {[%emt 0:00:30]} 44. Rg1 {[%emt 0:00:00]} Rb2 {[%emt 0:00:00]} 45. Rg3 {[%emt 0:01:00]} Bh4 {[%emt 0:01:00]} 46. Rd3+ {[%emt 0:00:30]} Ke7 {[%emt 0:00:30]} 47. Kf3 {[%emt 0:00:30]} Kf7 {[%emt 0:00:30]} 48. Be3 {[%emt 0:00:30]} Be7 {[%emt 0:00:30]} 49. h3 {[%emt 0:00:30]} Ke8 {[%emt 0:00:30]} 50. Bd2 {[%emt 0:00:30]} Rb1 {[%emt 0:00:30]} 51. Be3 {[%emt 0:00:30]} c4 {[%emt 0:00:00]} 52. bxc4 {[%emt 0:00:00]} b3 {[%emt 0:01:00]} 53. Ke4 {[%emt 0:01:00]} b2 {[%emt 0:00:00]} 54. Rb3 {[%emt 0:00:30]} Bc5 {[%emt 0:01:00]} 55. Bxc5 {[%emt 0:00:00]} Re1+ {[%emt 0:00:00]} 56. Kf3 {[%emt 0:00:00]} b1=Q {[%emt 0:00:00]} 57. Rxb1 {[%emt 0:00:00]} Rxb1 {[%emt 0:01:30]} 58. Bf2 {[%emt 0:02:00]} Rb2 {[%emt 0:00:30]} 59. Be3 {[%emt 0:00:00]} Rb3 {[%emt 0:00:30]} 60. Ke4 {[%emt 0:00:00]} Kd7 {[%emt 0:00:00]} 61. h4 {[%emt 0:00:00]} Kc6 {[%emt 0:00:00]} 62. Bd4 {[%emt 0:00:00]} Ra3 {[%emt 0:00:00]} 63. Be3 {[%emt 0:00:00]} Rc3 {[%emt 0:00:00]} 64. c5 {[%emt 0:00:00]} Ra3 {[%emt 0:00:00]} 65. Bd4 {[%emt 0:00:00]} Ra4 {[%emt 0:03:00]} 66. Kd3 {[%emt 0:00:00]} Kd5 {[%emt 0:00:00]} 67. Be3 {[%emt 0:00:00]} Ra3+ {[%emt 0:00:00]} 68. Ke2 {[%emt 0:00:00]} 0-1

[Event "36th Belgrade Trophy 2023"]
[Site "Belgrade"]
[Date "2023.12.02"]
[Round "8.6"]
[White "Trailovic, Aleksandar"]
[Black "Nenezic, Marko"]
[Result "0-1"]
[ECO "A48"]
[WhiteElo "2132"]
[BlackElo "2499"]
[Annotator "ChessBase"]
[PlyCount "95"]
[EventDate "2023.10.23"]
[EventType "swiss"]
[EventCountry "SRB"]
[SourceTitle "playchess.com"]
[Source "ChessBase"]
[SourceQuality "1"]
[TimeControl "40/5400+30:900+30"]

1. d4 {[%emt 0:00:09]} Nf6 {[%emt 0:06:59]} 2. Nf3 {[%emt 0:00:42]} g6 {[%emt 0:00:12]} 3. Bf4 {[%emt 0:00:22]} Bg7 {[%emt 0:00:06]} 4. e3 {[%emt 0:00:34]} d6 {[%emt 0:00:10]} 5. h3 {[%emt 0:00:54]} O-O {[%emt 0:00:10]} 6. Be2 {[%emt 0:00:32]} c5 {[%emt 0:00:10]} 7. Nbd2 {[%emt 0:02:14]} cxd4 {[%emt 0:04:01]} 8. exd4 {[%emt 0:00:13]} Nc6 {[%emt 0:00:11]} 9. Bh2 {[%emt 0:03:36]} Re8 {[%emt 0:04:16]} 10. Nc4 {[%emt 0:03:18]} Nd5 {[%emt 0:00:44]} 11. O-O {[%emt 0:07:00]} e5 {[%emt 0:03:05]} 12. c3 {[%emt 0:06:35]} b5 {[%emt 0:33:28]} 13. dxe5 {[%emt 0:18:38]} dxe5 {[%emt 0:00:40]} 14. Ne3 {[%emt 0:01:06]} Nxe3 {[%emt 0:01:54]} 15. Qxd8 {[%emt 0:00:15]} Nxd8 {[%emt 0:00:24]} 16. fxe3 {[%emt 0:00:33]} Rb8 {[%emt 0:00:21]} 17. Rad1 {[%emt 0:10:07]} f6 {[%emt 0:01:05]} 18. Nd4 {[%emt 0:03:47]} a6 {[%emt 0:03:01]} 19. Bf3 {[%emt 0:06:07]} Bh6 {[%emt 0:05:27]} 20. Bd5+ {[%emt 0:00:38]} Kg7 {[%emt 0:00:05]} 21. e4 {[%emt 0:03:07]} Rb6 {[%emt 0:02:33]} 22. Nb3 {[%emt 0:01:32]} Ne6 {[%emt 0:02:07]} 23. Bg3 {[%emt 0:00:54]} Be3+ {[%emt 0:02:24]} 24. Bf2 {[%emt 0:01:53]} Bxf2+ {[%emt 0:00:08]} 25. Kxf2 {[%emt 0:00:13]} Nf4 {[%emt 0:05:21]} 26. Nc5 {[%emt 0:00:34]} Rd8 {[%emt 0:02:44]} 27. Bb3 {[%emt 0:05:37]} Re8 {[%emt 0:00:53]} 28. Bd5 {[%emt 0:01:10]} f5 {[%emt 0:00:52]} 29. Rd2 {[%emt 0:02:28]} Rd8 {[%emt 0:02:57]} 30. Rfd1 {[%emt 0:03:53]} Rbd6 {[%emt 0:00:17]} 31. b3 {[%emt 0:01:41]} h5 {[%emt 0:06:46]} 32. c4 {[%emt 0:05:39]} h4 {[%emt 0:00:11]} 33. Nd3 {[%emt 0:02:47]} fxe4 {[%emt 0:07:47]} 34. Bxe4 {[%emt 0:03:44]} bxc4 {[%emt 0:02:53]} 35. bxc4 {[%emt 0:00:09]} Bf5 {[%emt 0:01:44]} 36. Ke3 {[%emt 0:01:04]} Bxe4 {[%emt 0:00:25]} 37. Kxe4 {[%emt 0:00:02]} Rd4+ {[%emt 0:00:32]} 38. Ke3 {[%emt 0:00:14]} Rxc4 {[%emt 0:00:17]} 39. Nxe5 {[%emt 0:02:51]} Re8 {[%emt 0:01:12]} 40. Rd4 {[%emt 0:00:00]} Nxg2+ {[%emt 0:00:00]} 41. Kf3 {[%emt 0:01:44]} Rxd4 {[%emt 0:09:19]} 42. Rxd4 {[%emt 0:00:12]} Ne1+ {[%emt 0:00:02]} 43. Ke4 {[%emt 0:00:44]} Rxe5+ {[%emt 0:00:07]} 44. Kxe5 {[%emt 0:05:39]} Nf3+ {[%emt 0:00:05]} 45. Ke4 {[%emt 0:00:06]} Nxd4 {[%emt 0:00:03]} 46. Kxd4 {[%emt 0:00:04]} g5 {[%emt 0:01:36]} 47. Ke4 {[%emt 0:00:40]} Kf6 {[%emt 0:00:04]} 48. a4 {[%emt 0:00:44]} 0-1

[Event "36th Belgrade Trophy 2023"]
[Site "Belgrade"]
[Date "2023.12.02"]
[Round "8.7"]
[White "Belke, Frank"]
[Black "Stojanovic, Mihajlo"]
[Result "0-1"]
[ECO "E32"]
[WhiteElo "2121"]
[BlackElo "2490"]
[Annotator "ChessBase"]
[PlyCount "40"]
[EventDate "2023.10.23"]
[EventType "swiss"]
[EventCountry "SRB"]
[SourceTitle "playchess.com"]
[Source "ChessBase"]
[SourceQuality "1"]
[TimeControl "40/5400+30:900+30"]

1. d4 {[%emt 0:00:03]} Nf6 {[%emt 0:02:04]} 2. c4 {[%emt 0:00:03]} e6 {[%emt 0:00:57]} 3. Nc3 {[%emt 0:00:04]} Bb4 {[%emt 0:00:06]} 4. Qc2 {[%emt 0:00:03]} d6 {[%emt 0:00:10]} 5. e4 {[%emt 0:00:30]} c5 {[%emt 0:00:36]} 6. a3 {[%emt 0:02:32]} Qa5 {[%emt 0:09:18]} 7. axb4 {[%emt 0:05:53]} Qxa1 {[%emt 0:00:17]} 8. Nb5 {[%emt 0:00:03]} O-O {[%emt 0:01:02]} 9. e5 {[%emt 0:12:16]} dxe5 {[%emt 0:17:18]} 10. dxe5 {[%emt 0:00:34]} Ng4 {[%emt 0:13:28]} 11. Nc7 {[%emt 0:07:34]} Nc6 {[%emt 0:02:30]} 12. Nxa8 {[%emt 0:00:10]} Rd8 {[%emt 0:06:16]} 13. Be2 {[%emt 0:09:51]} Nxb4 {[%emt 0:02:43]} 14. Qc3 {[%emt 0:00:56]} Na2 {[%emt 0:00:20]} 15. Qc2 {[%emt 0:00:08]} Nxc1 {[%emt 0:04:05]} 16. Bxg4 {[%emt 0:01:07]} Nd3+ {[%emt 0:03:32]} 17. Ke2 {[%emt 0:00:27]} Qe1+ {[%emt 0:00:56]} 18. Kf3 {[%emt 0:00:02]} Nxf2 {[%emt 0:02:56]} 19. Qe2 {[%emt 0:01:54]} Rd3+ {[%emt 0:00:36]} 20. Kf4 {[%emt 0:00:18]} Qc1+ {[%emt 0:00:25]} 0-1

[Event "36th Belgrade Trophy 2023"]
[Site "Belgrade"]
[Date "2023.12.02"]
[Round "8.8"]
[White "Janjic, Stefan"]
[Black "Milosevic, Milos"]
[Result "0-1"]
[ECO "A43"]
[WhiteElo "2116"]
[BlackElo "2362"]
[Annotator "ChessBase"]
[PlyCount "94"]
[EventDate "2023.10.23"]
[EventType "swiss"]
[EventCountry "SRB"]
[SourceTitle "playchess.com"]
[Source "ChessBase"]
[SourceQuality "1"]
[TimeControl "40/5400+30:900+30"]

1. d4 {[%emt 0:00:09]} Nf6 {[%emt 0:17:05]} 2. Nf3 {[%emt 0:00:37]} c5 {[%emt 0:00:37]} 3. d5 {[%emt 0:00:13]} b5 {[%emt 0:00:06]} 4. Bg5 {[%emt 0:00:49]} Qb6 {[%emt 0:01:26]} 5. Nc3 {[%emt 0:09:15]} b4 {[%emt 0:10:55]} 6. Na4 {[%emt 1:22:27]} Qa5 {[%emt 0:01:21]} 7. Bxf6 {[%emt 0:00:00]} gxf6 {[%emt 0:00:46]} 8. b3 {[%emt 0:00:00]} f5 {[%emt 0:00:21]} 9. Qd3 {[%emt 0:00:00]} Bg7 {[%emt 0:00:46]} 10. Rd1 {[%emt 0:00:00]} d6 {[%emt 0:00:15]} 11. Nd2 {[%emt 0:00:00]} Qc7 {[%emt 0:03:04]} 12. g3 {[%emt 0:00:00]} Nd7 {[%emt 0:03:29]} 13. Nc4 {[%emt 0:00:00]} Nb6 {[%emt 0:02:05]} 14. Bh3 {[%emt 0:00:00]} Nxa4 {[%emt 0:02:32]} 15. bxa4 {[%emt 0:00:00]} Bc3+ {[%emt 0:00:38]} 16. Kf1 {[%emt 0:00:00]} Qd7 {[%emt 0:02:04]} 17. a5 {[%emt 0:00:00]} Ba6 {[%emt 0:02:38]} 18. Bxf5 {[%emt 0:00:00]} Qb5 {[%emt 0:00:08]} 19. Qe3 {[%emt 0:00:00]} Qxc4 {[%emt 0:01:27]} 20. Bd3 {[%emt 0:00:00]} Qxa2 {[%emt 0:00:04]} 21. Bxa6 {[%emt 0:00:00]} Rb8 {[%emt 0:00:30]} 22. Qe4 {[%emt 0:00:00]} Qxa5 {[%emt 0:00:51]} 23. Bc4 {[%emt 0:00:00]} Qb6 {[%emt 0:02:03]} 24. Rd3 {[%emt 0:00:00]} a5 {[%emt 0:00:21]} 25. Re3 {[%emt 0:00:00]} Bf6 {[%emt 0:00:19]} 26. g4 {[%emt 0:02:06]} Kd8 {[%emt 0:03:13]} 27. h4 {[%emt 0:01:00]} Qa7 {[%emt 0:01:50]} 28. Rf3 {[%emt 0:01:29]} a4 {[%emt 0:05:42]} 29. g5 {[%emt 0:00:24]} Be5 {[%emt 0:00:05]} 30. Rxf7 {[%emt 0:04:01]} b3 {[%emt 0:00:07]} 31. cxb3 {[%emt 0:00:12]} a3 {[%emt 0:00:22]} 32. b4 {[%emt 0:02:19]} Rxb4 {[%emt 0:00:34]} 33. f4 {[%emt 0:00:40]} a2 {[%emt 0:01:08]} 34. Kg2 {[%emt 0:00:52]} a1=Q {[%emt 0:38:38]} 35. Rxa1 {[%emt 0:00:24]} Bxa1 {[%emt 0:00:00]} 36. Qd3 {[%emt 0:00:57]} Qa4 {[%emt 0:00:00]} 37. Qe3 {[%emt 0:00:30]} Qe8 {[%emt 0:00:00]} 38. Qa3 {[%emt 0:00:33]} Qxf7 {[%emt 0:00:00]} 39. Qa5+ {[%emt 0:00:27]} Kc8 {[%emt 0:00:00]} 40. Qa8+ {[%emt 0:00:00]} Kc7 {[%emt 0:00:00]} 41. Qc6+ {[%emt 0:01:03]} Kb8 {[%emt 0:00:00]} 42. Bb5 {[%emt 0:00:23]} e5 {[%emt 0:00:00]} 43. Qb6+ {[%emt 0:01:23]} Qb7 {[%emt 0:00:00]} 44. Qxd6+ {[%emt 0:00:12]} Qc7 {[%emt 0:00:00]} 45. Qa6 {[%emt 0:01:08]} Rxb5 {[%emt 0:00:00]} 46. Qxb5+ {[%emt 0:00:14]} Qb7 {[%emt 0:00:00]} 47. Qxc5 {[%emt 0:01:04]} Rd8 {[%emt 0:00:00]} 0-1

[Event "36th Belgrade Trophy 2023"]
[Site "Belgrade"]
[Date "2023.12.02"]
[Round "8.9"]
[White "Jovanovic, Aleksandar D"]
[Black "Mezentsev, Ivan"]
[Result "0-1"]
[ECO "B15"]
[WhiteElo "2083"]
[BlackElo "2362"]
[Annotator "ChessBase"]
[PlyCount "34"]
[EventDate "2023.10.23"]
[EventType "swiss"]
[EventCountry "SRB"]
[SourceTitle "playchess.com"]
[Source "ChessBase"]
[SourceQuality "1"]
[TimeControl "40/5400+30:900+30"]

1. e4 {[%emt 1:31:00]} c6 {[%emt 1:31:00]} 2. d4 {[%emt 0:00:30]} d5 {[%emt 0:00:30]} 3. Nc3 {[%emt 0:00:30]} dxe4 {[%emt 0:00:00]} 4. Nxe4 Nf6 {[%emt 0:01:00]} 5. Ng5 {[%emt 0:01:00]} Bf5 {[%emt 0:00:30]} 6. c3 {[%emt 0:00:30]} h6 {[%emt 0:00:00]} 7. N5f3 {[%emt 0:00:30]} Nbd7 {[%emt 0:01:00]} 8. Bc4 {[%emt 0:00:30]} e6 {[%emt 0:00:00]} 9. Ne2 {[%emt 0:00:30]} Bd6 {[%emt 0:01:00]} 10. O-O {[%emt 0:00:30]} Qc7 {[%emt 0:00:00]} 11. Ng3 {[%emt 0:00:30]} Bh7 {[%emt 0:01:00]} 12. Qe2 {[%emt 0:00:00]} O-O {[%emt 0:00:00]} 13. Re1 {[%emt 0:01:00]} c5 {[%emt 0:00:00]} 14. Bb3 {[%emt 0:00:30]} Rad8 {[%emt 0:01:30]} 15. Bd2 {[%emt 0:00:00]} a6 {[%emt 0:00:30]} 16. Ne5 {[%emt 0:01:00]} Nxe5 {[%emt 0:00:00]} 17. dxe5 {[%emt 0:00:00]} Bxe5 {[%emt 0:00:00]} 0-1

[Event "36th Belgrade Trophy 2023"]
[Site "Belgrade"]
[Date "2023.12.02"]
[Round "8.10"]
[White "Javadov, Habil"]
[Black "Djokic, Nenad"]
[Result "1-0"]
[ECO "A47"]
[WhiteElo "2026"]
[BlackElo "2223"]
[Annotator "ChessBase"]
[PlyCount "79"]
[EventDate "2023.10.23"]
[EventType "swiss"]
[EventCountry "SRB"]
[SourceTitle "playchess.com"]
[Source "ChessBase"]
[SourceQuality "1"]
[TimeControl "40/5400+30:900+30"]

1. d4 {[%emt 1:31:00]} Nf6 {[%emt 1:31:00]} 2. Nf3 {[%emt 0:00:30]} e6 {[%emt 0:00:30]} 3. Bf4 {[%emt 0:00:30]} c5 {[%emt 0:00:30]} 4. e3 {[%emt 0:00:30]} cxd4 {[%emt 0:00:30]} 5. exd4 {[%emt 0:00:30]} b6 {[%emt 0:00:30]} 6. c3 {[%emt 0:00:30]} Bb7 {[%emt 0:00:30]} 7. Nbd2 {[%emt 0:00:30]} Be7 {[%emt 0:00:30]} 8. h3 {[%emt 0:00:30]} O-O {[%emt 0:00:00]} 9. Bd3 {[%emt 0:00:30]} d6 {[%emt 0:00:00]} 10. O-O Nbd7 {[%emt 0:00:00]} 11. a4 a6 {[%emt 0:02:00]} 12. Re1 {[%emt 0:01:30]} Re8 {[%emt 0:00:00]} 13. Bh2 h6 {[%emt 0:01:00]} 14. Qe2 {[%emt 0:01:00]} Bf8 {[%emt 0:00:00]} 15. Nc4 Qc7 {[%emt 0:00:00]} 16. Ne3 Qc6 {[%emt 0:00:00]} 17. Qc2 Rad8 {[%emt 0:00:00]} 18. Rad1 Qc8 {[%emt 0:00:00]} 19. Nd2 Bc6 {[%emt 0:00:00]} 20. Ne4 {[%emt 0:00:00]} Nxe4 {[%emt 0:00:00]} 21. Bxe4 {[%emt 0:03:30]} Nf6 {[%emt 0:04:00]} 22. Bxc6 {[%emt 0:00:00]} Qxc6 {[%emt 0:00:00]} 23. Ra1 Rd7 {[%emt 0:00:00]} 24. Qe2 b5 {[%emt 0:01:30]} 25. axb5 {[%emt 0:02:00]} axb5 {[%emt 0:00:30]} 26. Ra5 {[%emt 0:00:30]} Rb7 {[%emt 0:00:30]} 27. Rea1 {[%emt 0:00:30]} d5 {[%emt 0:00:30]} 28. Ra6 {[%emt 0:00:30]} Qc8 {[%emt 0:00:00]} 29. R6a5 {[%emt 0:00:30]} Qd7 {[%emt 0:00:00]} 30. Ra8 {[%emt 0:00:30]} b4 {[%emt 0:01:30]} 31. c4 {[%emt 0:00:30]} dxc4 {[%emt 0:00:00]} 32. Rxe8 {[%emt 0:00:00]} Qxe8 {[%emt 0:00:00]} 33. Qxc4 Rd7 {[%emt 0:00:00]} 34. Be5 Nd5 {[%emt 0:02:00]} 35. Nxd5 {[%emt 0:00:00]} Rxd5 {[%emt 0:00:00]} 36. Ra7 Qd8 {[%emt 0:00:00]} 37. Qc6 {[%emt 0:03:00]} g6 {[%emt 0:00:00]} 38. Ra8 Qe7 {[%emt 0:02:00]} 39. Re8 {[%emt 0:01:00]} Qd7 {[%emt 0:00:00]} 40. Qa8 {[%emt 0:00:00]} 1-0